fUSD/lending_fUSD_20250312
["ID","MTS","AMOUNT","RATE_DAILY","PERIOD"]
[355991179,1741774242547,-150.0,0.0002855,2]
[355991180,1741774242557,-150.0,0.00028561,2]
[355991181,1741774242567,-150.0,0.00028562,2]
[355991182,1741774242576,-6121.60340568,0.00028563,15]
[355991183,1741774242586,-4918.29221302,0.00028563,2]
[355991184,1741774242595,-74336.63898013,0.00028564,2]
[355991190,1741774243458,-562.29473307,0.00028564,2]
[355991196,1741774244210,-4836.0,0.00028564,2]
[355991197,1741774244222,-1099.45166358,0.00028564,2]
[355991198,1741774244233,-9518.59284828,0.00028564,2]
[355991199,1741774244244,-913.44,0.00028564,2]
[355991200,1741774244255,-6397.3587318,0.00028564,2]
[355991201,1741774244266,-6315.3,0.00028564,2]
[355991202,1741774244289,-29828.27162058,0.00028564,2]
[355991203,1741774244300,-12346.92922708,0.00028564,2]
[355991204,1741774244311,-162.96558061,0.00028564,2]
[355991205,1741774244321,-796.27144973,0.00028564,2]
[355991206,1741774244330,-2154.21182036,0.00028564,2]
[355991207,1741774244344,-10505.29731669,0.00028564,3]
[355991208,1741774244356,-14723.97988557,0.00028564,3]
[355991209,1741774244369,-1619.96154162,0.00028564,3]
[355991210,1741774244379,-101205.56662933,0.00028564,2]
[355991211,1741774244388,-372.85060682,0.00028564,2]
[355991212,1741774244399,-7650.85519788,0.00028564,2]
[355991213,1741774244409,-9157.17368904,0.00028564,2]
[355991214,1741774244418,-1299.94693903,0.00028564,2]
[355991215,1741774244428,-182.46893376,0.00028564,2]
[355991216,1741774244438,-643.0,0.00028564,2]
[355991217,1741774244450,-961.87618753,0.00028564,2]
[355991218,1741774244459,-568.11735789,0.00028564,2]
[355991219,1741774244469,-1821.12008852,0.00028564,2]
[355991220,1741774244478,-173.88110025,0.00028564,2]
[355991221,1741774244488,-227.00209053,0.00028564,2]
[355991222,1741774244497,-172.27601923,0.00028564,2]
[355991223,1741774244506,-6000.0,0.00028564,2]
[355991224,1741774244516,-372.23070645,0.00028564,2]
[355991225,1741774244525,-1458.03264692,0.00028564,2]
[355991226,1741774244535,-1024.66555498,0.00028564,2]
[355991227,1741774244544,-558.3206007,0.00028564,2]
[355991228,1741774244553,-150.0,0.00028564,2]
[355991229,1741774244563,-7708.08654146,0.00028564,2]
[355991230,1741774244573,-601.88679195,0.00028564,2]
[355991231,1741774244582,-620.92660243,0.00028564,2]
[355991232,1741774244592,-212.85862266,0.00028564,2]
[355991233,1741774244601,-246.91659689,0.00028564,2]
[355991234,1741774244610,-1250.49626656,0.00028564,2]
[355991235,1741774244620,-1032.18859431,0.00028564,2]
[355991236,1741774244630,-589.50562486,0.00028564,2]
[355991237,1741774244640,-6702.77093711,0.00028564,4]
[355991238,1741774244649,-61272.62757009,0.00028564,2]
[355991239,1741774244658,-7814.17196373,0.00028564,7]
[355991240,1741774244668,-18722.93545593,0.00028564,5]
[355991241,1741774244677,-111130.94388967,0.00028564,2]
[355991242,1741774244686,-21108.24781135,0.00028564,2]
[355991243,1741774244696,-15470.52633042,0.00028564,2]
[355991244,1741774244705,-117454.61436551,0.00028564,7]
[355991245,1741774244722,-65298.47207236,0.00028564,7]
[355991246,1741774244731,-4000.0,0.00028564,5]
[355991247,1741774244740,-1023.81843687,0.00028564,7]
[355991248,1741774244749,-214.70801858,0.00028564,7]
[355991249,1741774244759,-1475.37567374,0.00028564,10]
[355991250,1741774244768,-1013.90732424,0.00028564,15]
[355991251,1741774244777,-947.95572416,0.00028564,20]
[355991252,1741774244786,-524.87554174,0.00028564,7]
[355991253,1741774244795,-300.0,0.00028564,15]
[355991254,1741774244805,-2247.14502583,0.00028564,14]
[355991255,1741774244814,-1225.89348233,0.00028564,15]
[355991256,1741774244824,-2215.12634221,0.00028564,10]
[355991257,1741774244833,-2245.35090162,0.00028564,10]
[355991258,1741774244843,-1000.0,0.00028564,10]
[355991259,1741774244852,-500.0,0.00028564,10]
[355991260,1741774244861,-459.11997639,0.00028564,7]
[355991261,1741774244870,-271.21404557,0.00028564,10]
[355991262,1741774244880,-500.0,0.00028564,7]
[355991263,1741774244889,-97201.17062356,0.00028564,10]
[355991264,1741774244898,-10572.52950445,0.00028564,15]
[355991265,1741774244907,-20324.64689598,0.00028564,5]
[355991266,1741774244916,-16329.93955645,0.00028564,20]
[355991267,1741774244925,-51182.66624904,0.00028564,4]
[355991268,1741774244935,-800.0,0.00028564,7]
[355991269,1741774244944,-8420.93799664,0.00028564,7]
[355991270,1741774244953,-101698.76123094,0.00028564,2]
[355991271,1741774244963,-8562.13567647,0.00028564,2]
[355991272,1741774244973,-5143.68087809,0.00028564,4]
[355991273,1741774244983,-696.93157409,0.00028564,10]
[355991274,1741774244993,-387.07303108,0.00028564,2]
[355991275,1741774245002,-19274.39678808,0.00028564,2]
[355991276,1741774245012,-1210.0,0.00028564,2]
[355991277,1741774245021,-697.25669553,0.00028564,2]
[355991278,1741774245030,-345.31001972,0.00028564,2]
[355991279,1741774245040,-755.09717315,0.00028564,2]
[355991280,1741774245049,-1507.68401617,0.00028564,2]
[355991281,1741774245058,-1020.71697866,0.00028564,2]
[355991282,1741774245067,-5139.67242225,0.00028564,2]
[355991283,1741774245076,-2434.15925937,0.00028564,2]
[355991284,1741774245086,-112507.12282514,0.00028564,2]
[355991285,1741774245096,-80222.13875145,0.00028564,2]
[355991286,1741774245105,-76371.78950149,0.00028564,2]
[355991287,1741774245114,-4368.53919814,0.00028564,2]
[355991288,1741774245124,-14825.87204923,0.00028564,2]
[355991289,1741774245133,-51761.96375551,0.00028564,2]
[355991290,1741774245143,-446.37562847,0.00028564,2]
[355991291,1741774245152,-1059.04544101,0.00028564,2]
[355991292,1741774245162,-2500.0,0.00028564,2]
[355991293,1741774245171,-574.96588357,0.00028564,2]
[355991294,1741774245180,-339.64765143,0.00028564,2]
[355991295,1741774245189,-1100.0,0.00028564,2]
[355991296,1741774245199,-905.4592851,0.00028564,2]
[355991297,1741774245208,-477.9889825,0.00028564,2]
[355991298,1741774245217,-168.96567576,0.00028564,2]
[355991299,1741774245226,-227.87312432,0.00028564,2]
[355991300,1741774245235,-1574.22374842,0.00028564,2]
[355991301,1741774245244,-55180.14574761,0.00028564,2]
[355991302,1741774245253,-49614.75953426,0.00028564,2]
[355991303,1741774245262,-543.48863013,0.00028564,2]
[355991304,1741774245271,-4969.65096207,0.00028564,2]
[355991305,1741774245281,-1003.66905566,0.00028564,2]
[355991306,1741774245290,-361.88028391,0.00028564,2]
[355991307,1741774245299,-2187.8563962,0.00028564,2]
[355991308,1741774245310,-281.42451585,0.00028564,2]
[355991309,1741774245319,-14654.85793737,0.00028564,2]
[355991310,1741774245328,-1821.94246299,0.00028564,2]
[355991311,1741774245337,-1108.63409693,0.00028564,2]
[355991312,1741774245347,-218.52862437,0.00028564,2]
[355991313,1741774245356,-13950.90632626,0.00028564,2]
[355991314,1741774245368,-10113.52218383,0.00028564,2]
[355991315,1741774245377,-1691.81742648,0.00028564,2]
[355991316,1741774245386,-201.07604802,0.00028564,2]
[355991317,1741774245395,-280.32680545,0.00028564,2]
[355991318,1741774245405,-5635.84540668,0.00028564,2]
[355991319,1741774245414,-1004.60642851,0.00028564,2]
[355991320,1741774245423,-162.91,0.00028564,2]
[355991321,1741774245432,-150.0,0.00028564,2]
[355991322,1741774245443,-3000.0,0.00028564,2]
[355991323,1741774245452,-2032.48975774,0.00028564,3]
[355991324,1741774245461,-150.0,0.00028564,2]
[355991325,1741774245470,-150.01,0.00028564,3]
[355991326,1741774245480,-1069.3478814,0.00028564,5]
[355991327,1741774245489,-20356.43807562,0.00028564,10]
[355991328,1741774245498,-5158.15264836,0.00028564,7]
[355991329,1741774245507,-151.37324928,0.00028564,2]
[355991330,1741774245517,-864.59266368,0.00028564,5]
[355991331,1741774245527,-556.74512841,0.00028564,5]
[355991332,1741774245536,-1965.76247044,0.00028564,5]
[355991333,1741774245546,-967.55949086,0.00028564,5]
[355991334,1741774245556,-586.46492427,0.00028564,5]
[355991335,1741774245565,-216.51732129,0.00028564,5]
[355991336,1741774245574,-534.38646075,0.00028564,5]
[355991337,1741774245584,-275.0,0.00028564,14]
[355991338,1741774245593,-50000.0,0.00028564,2]
[355991339,1741774245602,-5008.66145021,0.00028564,7]
[355991340,1741774245611,-265.13102271,0.00028564,16]
[355991341,1741774245620,-2682.63203993,0.00028564,2]
[355991342,1741774245630,-212.61398387,0.00028564,7]
[355991343,1741774245639,-880.63335367,0.00028564,2]
[355991344,1741774245648,-1471.52672373,0.00028564,2]
[355991345,1741774245657,-453.82868463,0.00028564,20]
[355991346,1741774245667,-51000.0,0.00028564,10]
[355991347,1741774245676,-85992.0,0.00028564,20]
[355991348,1741774245685,-2000.0,0.00028564,7]
[355991349,1741774245695,-2104.35675507,0.00028564,10]
[355991350,1741774245705,-3068.50318475,0.00028564,8]
[355991351,1741774245714,-686.0,0.00028564,15]
[355991352,1741774245723,-1270.06695781,0.00028564,4]
[355991353,1741774245732,-279.0,0.00028564,2]
[355991354,1741774245741,-14670.12072243,0.00028564,7]
[355991355,1741774245750,-1021.63991543,0.00028564,2]
[355991356,1741774245760,-909.96077874,0.00028564,3]
[355991357,1741774245769,-494.55381248,0.00028564,2]
[355991358,1741774245779,-4802.00883281,0.00028564,10]
[355991359,1741774245788,-1308.0,0.00028564,7]
[355991360,1741774245797,-150.0,0.00028564,2]
[355991361,1741774245809,-2437.14992366,0.00028564,15]
[355991362,1741774245818,-1419.23211417,0.00028564,2]
[355991363,1741774245828,-359.149999,0.00028564,3]
[355991364,1741774245837,-158.3,0.00028564,2]
[355991365,1741774245847,-163.56032285,0.00028564,7]
[355991366,1741774245856,-151.52714318,0.00028564,5]
[355991367,1741774245865,-7849.62028859,0.00028564,10]
[355991368,1741774245875,-396080.1960494,0.00028564,8]
[355991369,1741774245938,-1776.20347505,0.00028564,8]
[355991370,1741774246255,-407.82269628,0.00024999,2]
[355991371,1741774246266,-92.17730372,0.00024999,2]
[355991372,1741774246275,-500.0,0.00024999,2]
[355991373,1741774246284,-500.0,0.00024999,2]
[355991374,1741774246293,-500.0,0.00024999,2]
[355991375,1741774246303,-500.0,0.00024999,2]
[355991376,1741774246312,-500.0,0.00024999,2]
[355991377,1741774246321,-500.0,0.00024999,2]
[355991378,1741774246330,-500.0,0.00024999,2]
[355991379,1741774246340,-500.0,0.00024999,2]
[355991380,1741774246349,-500.0,0.00024999,2]
[355991381,1741774246361,-500.0,0.00024999,2]
[355991382,1741774246370,-500.0,0.00024999,2]
[355991383,1741774246379,-500.0,0.00024999,2]
[355991384,1741774246389,-500.0,0.00024999,2]
[355991385,1741774246398,-500.0,0.00024999,2]
[355991386,1741774246407,-228.00176865,0.00024999,2]
[355991387,1741774246417,-500.0,0.00024999,2]
[355991388,1741774246427,-500.0,0.00024999,2]
[355991389,1741774246437,-141539.10626062,0.00028564,8]
[355991390,1741774246446,-1097.27652671,0.00028564,2]
[355991391,1741774246455,-865.52016538,0.00028564,2]
[355991392,1741774246464,-488695.16194702,0.00028564,30]
[355991393,1741774246509,-495.71226737,0.00028564,30]
[355991394,1741774246525,-2324.29556668,0.00028564,30]
[355991395,1741774246559,-828.33,0.00028564,30]
[355991396,1741774246570,-4794.10916932,0.00028564,30]
[355991397,1741774246581,-429.36,0.00028564,30]
[355991398,1741774246593,-1299.66277184,0.00028564,30]
[355991399,1741774246603,-564.88228283,0.00028564,30]
[355991401,1741774936652,550.0,9e-05,2]
[355991402,1741774953002,258.11,0.0001047,2]
[355991403,1741775109050,333603.89,0.0001,2]
[355991404,1741775253339,-600.0,9.3e-05,3]
[355991405,1741775253362,-1300.0,9.4e-05,3]
[355991406,1741775253385,-1900.0,9.5e-05,3]
[355991407,1741775253409,-2600.0,9.6e-05,3]
[355991408,1741775253433,-3200.0,9.7e-05,3]
[355991409,1741775253460,-600.0,9.8e-05,3]
[355991410,1741775253483,-300.0,9.899e-05,2]
[355991411,1741775253507,-150.0,9.899e-05,2]
[355991412,1741775253532,-98074.98296372,9.9e-05,2]
[355991413,1741775253556,-600.0,9.9e-05,3]
[355991414,1741775253580,-168.41534103,9.999e-05,2]
[355991415,1741775253604,-500.0,9.999e-05,2]
[355991416,1741775253628,-619.00074726,9.999e-05,2]
[355991417,1741775253652,-500.0,9.999e-05,2]
[355991418,1741775253677,-500.0,9.999e-05,2]
[355991419,1741775253707,-2459.14610651,0.0001,2]
[355991420,1741775253734,-69593.45484148,0.0001,2]
[355991421,1741775258167,-100000.0,0.0001,2]
[355991422,1741775258606,-100000.0,0.0001,2]
[355991423,1741775259664,-100000.0,0.0001,2]
[355991424,1741775262430,-100000.0,0.0001,2]
[355991459,1741775432418,-420.7394915,9.8e-05,2]
[355991460,1741775432476,-310.36,9.8e-05,2]
[355991461,1741775432488,-296.03200141,9.8e-05,2]
[355991462,1741775432537,-366.48101014,9.8e-05,2]
[355991463,1741775432549,-4345.38319695,9.8e-05,2]
[355991464,1741775432558,-1229.57305325,0.0001,2]
[355991465,1741775432567,-17358.0844398,0.0001,2]
[355991466,1741775432579,-547.20265525,0.0001,2]
[355991467,1741775432962,-1311.85405559,0.0001,2]
[355991468,1741775432977,-449.32685517,0.0001,2]
[355991469,1741775432987,-299.99,0.0001,2]
[355991470,1741775433024,-342422.27948394,0.0001,2]
[355991471,1741775433035,-1685.12419043,0.0001,2]
[355991472,1741775433046,-837.24311816,0.0001,2]
[355991474,1741775438283,-281.67050018,0.0001,2]
[355991475,1741775438294,-11929.12256,0.0001,2]
[355991476,1741775438305,-6986.421322,0.0001,2]
[355991487,1741775440415,-17062.04452384,0.0001,2]
[355991488,1741775440475,-1742633.63609354,0.0001,2]
[355991489,1741775440486,-293.93629405,0.0001,2]
[355991490,1741775440647,-41277.5,0.0001,2]
[355991491,1741775440661,-32544.52041238,0.0001,2]
[355991492,1741775440705,-315.36443668,0.0001,2]
[355991493,1741775440764,-5765.74704809,0.0001,2]
[355991591,1741775444655,-1598.89385898,0.0001,2]
[355991595,1741775446418,-4321.63961437,0.0001,2]
[355991597,1741775446668,-2240.30242181,0.0001,2]
[355991601,1741775554722,165.78277519,0.0002,120]
[355991656,1741776631879,-1025.528,9.8e-05,2]
[355991657,1741776631888,-267.5192,9.8e-05,2]
[355991658,1741776631897,-150.0,9.899e-05,2]
[355991659,1741776631907,-300.0,9.899e-05,2]
[355991660,1741776631916,-21580.93888,9.9e-05,2]
[355991721,1741776637564,-17253.60000001,9.9e-05,2]
[355991722,1741776637669,-5353.11168528,9.9e-05,2]
[355991727,1741776639715,-338.06224798,9.9e-05,2]
[355991728,1741776639874,-2055.88003617,9.9e-05,2]
[355991729,1741776639916,-2332.30869431,9.9e-05,2]
[355991732,1741776643035,-2143.89348398,9.9e-05,2]
[355991735,1741776645795,-261.59466892,9.9e-05,2]
[355991736,1741776645806,-206764.60269596,9.9e-05,2]
[355991737,1741776645848,-38553.49437648,9.9e-05,2]
[355991738,1741776645859,-337.82000013,9.9e-05,2]
[355991739,1741776645870,-2465.18803461,9.9e-05,2]
[355991740,1741776645902,-1637.40439275,9.9e-05,2]
[355991741,1741776645957,-949.24,9.9e-05,2]
[355991742,1741776645968,-958.20679999,9.9e-05,2]
[355991753,1741776646215,-3982.91499076,9.9e-05,2]
[355991755,1741776646226,-569.6295,9.9e-05,2]
[355991815,1741776749850,550.0,9e-05,2]
[355991821,1741777831717,-150.0,9.899e-05,2]
[355991822,1741777831727,-339.51465397,9.899e-05,2]
[355991823,1741777831737,-1469.32760101,9.9e-05,2]
[355991824,1741777831748,-1151.55012815,9.9e-05,2]
[355991825,1741777831759,-640.09000008,9.9e-05,2]
[355991826,1741777831770,-256.7011023,9.9e-05,2]
[355991827,1741777831823,-2029.88435016,9.9e-05,2]
[355991828,1741777831933,-12448.16541727,9.9e-05,2]
[355991829,1741777831984,-254.46,9.9e-05,2]
[355991830,1741777832038,-29917.37088064,9.9e-05,2]
[355991884,1741777837725,-1762.48549361,9.9e-05,2]
[355991885,1741777837831,-8156.25118615,9.9e-05,2]
[355991898,1741777839769,-518.72,9.9e-05,2]
[355991899,1741777839823,-126114.93277623,9.9e-05,2]
[355991900,1741777839833,-150.0,9.973e-05,2]
[355991901,1741777839842,-500.0,9.999e-05,2]
[355991902,1741777839851,-1128.53690323,0.0001,2]
[355991903,1741777839860,-1614740.16641408,0.0001,2]
[355991904,1741777839871,-527.55520127,0.0001,2]
[355991905,1741777839883,-951.7,0.0001,2]
[355991906,1741777839897,-19612.66921709,0.0001,2]
[355991907,1741777840145,-401.44214624,0.0001,2]
[355991909,1741777842809,-284181.27564947,0.0001,2]
[355991910,1741777842820,-1079.02,0.0001,2]
[355991911,1741777842862,-1997.94129572,0.0001,2]
[355991912,1741777842873,-625.19699839,0.0001,2]
[355991913,1741777842916,-568.69313,0.0001,2]
[355991914,1741777842928,-14715.0917788,0.0001,2]
[355991916,1741777843185,-621.55740483,0.0001,2]
[355991921,1741777845843,-251.8426471,0.0001,2]
[355991922,1741777845855,-952.45,0.0001,2]
[355991923,1741777845866,-700.78568016,0.0001,2]
[355991924,1741777845895,-678.46196361,0.0001,2]
[355991925,1741777845906,-1251.55,0.0001,2]
[355991926,1741777845916,-4995.69220563,0.0001,2]
[355991927,1741777845953,-440.8648497,0.0001,2]
[355991928,1741777846113,-2049.27708235,0.0001,2]
[355991975,1741778563088,550.0,9e-05,2]
[355991978,1741778778909,304.33,0.00020011,120]
[355991980,1741778821409,-460.56438774,9.751e-05,2]
[355991982,1741778905496,-370.728827,9.751e-05,2]
[355991995,1741779031876,-1382.961,9.8e-05,2]
[355991997,1741779031887,-174.287,9.8e-05,2]
[355991998,1741779031897,-1108.8356,9.9e-05,2]
[355991999,1741779031906,-300.0,9.909e-05,2]
[355992000,1741779031917,-3868.55725429,9.91e-05,2]
[355992001,1741779031929,-2614.97457783,9.91e-05,2]
[355992002,1741779031941,-1912.22063303,9.91e-05,2]
[355992003,1741779031950,-1947.05520745,9.91e-05,2]
[355992004,1741779031962,-3749.82863,9.91e-05,2]
[355992005,1741779031973,-2427.49534836,9.91e-05,2]
[355992006,1741779031986,-3675.62211806,9.91e-05,2]
[355992007,1741779031997,-1187.64451044,9.91e-05,2]
[355992008,1741779032008,-765.41038016,9.91e-05,2]
[355992009,1741779032020,-157.0602243,9.91e-05,2]
[355992010,1741779032030,-500.12479571,9.973e-05,2]
[355992011,1741779032039,-150.0,9.998e-05,2]
[355992012,1741779032049,-500.0,9.999e-05,2]
[355992013,1741779032058,-253.92659085,9.999e-05,2]
[355992014,1741779032098,-246.07340915,9.999e-05,2]
[355992015,1741779032108,-43.65533961,9.999e-05,2]
[355992016,1741779032119,-300.0,9.999e-05,2]
[355992017,1741779032131,-156.34466039,9.999e-05,2]
[355992018,1741779032140,-633.55738476,9.999e-05,2]
[355992019,1741779032150,-213.02489932,9.999e-05,2]
[355992020,1741779032208,-286.97510068,9.999e-05,2]
[355992021,1741779032218,-500.0,9.999e-05,2]
[355992022,1741779032227,-289.23489122,9.999e-05,2]
[355992023,1741779032239,-210.76510878,9.999e-05,2]
[355992024,1741779032249,-561.37686412,0.0001,2]
[355992034,1741779037827,-600.45761951,0.0001,2]
[355992036,1741779037840,-380.73885789,0.0001,2]
[355992037,1741779037850,-6545.76252071,0.0001,2]
[355992038,1741779037861,-453.30570109,0.0001,2]
[355992039,1741779037883,-1433.91078519,0.0001,2]
[355992040,1741779037941,-16610.05242172,0.0001,2]
[355992041,1741779037999,-10822.16918106,0.0001,2]
[355992042,1741779038011,-59571.52481641,0.0001,2]
[355992051,1741779039976,-1616518.70331731,0.0001,2]
[355992066,1741779046015,-8012.45,0.0001,2]
[355992105,1741779046760,-164.96,0.0001,2]
[355992106,1741779127793,-250.0,9.9e-05,2]
[355992113,1741780232107,-300.0,9.899e-05,2]
[355992114,1741780232117,-150.0,9.899e-05,2]
[355992115,1741780232126,-1127.36276331,9.9e-05,2]
[355992116,1741780232319,-1816.61932515,9.9e-05,2]
[355992117,1741780232331,-3830.79623232,9.9e-05,2]
[355992118,1741780232342,-1681.21549141,9.9e-05,2]
[355992119,1741780232373,-864.56962745,9.9e-05,2]
[355992120,1741780232383,-520.57,9.9e-05,2]
[355992126,1741780238044,-9920.24586036,9.9e-05,2]
[355992127,1741780238055,-150.0,9.973e-05,2]
[355992128,1741780238064,-152.84991477,9.973e-05,2]
[355992129,1741780238074,-560.53698294,9.99e-05,2]
[355992130,1741780238083,-500.0,9.999e-05,2]
[355992131,1741780238093,-150.0,9.999e-05,2]
[355992132,1741780238102,-808.0,0.0001,2]
[355992133,1741780238112,-17241.85281104,0.0001,2]
[355992134,1741780238121,-4513.46701278,0.0001,2]
[355992135,1741780238132,-997.72823124,0.0001,2]
[355992136,1741780238148,-2279.81242233,0.0001,2]
[355992137,1741780238160,-833.69583873,0.0001,2]
[355992138,1741780238171,-1765.5,0.0001,2]
[355992139,1741780238183,-2637.7,0.0001,2]
[355992140,1741780238195,-926.384535,0.0001,2]
[355992141,1741780238206,-4519.1343878,0.0001,2]
[355992142,1741780238217,-1471.09,0.0001,2]
[355992143,1741780238230,-2785.10396929,0.0001,2]
[355992144,1741780238241,-333.794745,0.0001,2]
[355992145,1741780238260,-414.04008287,0.0001,2]
[355992146,1741780238271,-59277.34355656,0.0001,2]
[355992150,1741780240145,-805.42637062,0.0001,2]
[355992152,1741780240195,-1616518.70331731,0.0001,2]
[355992153,1741780240300,-1186.86366256,0.0001,2]
[355992154,1741780240312,-1103.56831803,0.0001,2]
[355992160,1741780246241,-732.0,0.0001,2]
[355992161,1741780246251,-930.04,0.0001,2]
[355992162,1741780246294,-8326.87541704,0.0001,2]
[355992178,1741780379104,-163.90478588,9e-05,2]
[355992181,1741781432315,-386.09521412,9e-05,2]
[355992182,1741781432325,-365.253643,9.681e-05,2]
[355992183,1741781432335,-1401.66397506,9.73e-05,2]
[355992184,1741781432344,-550.0,9.88e-05,2]
[355992185,1741781432354,-1073.6859,9.9e-05,2]
[355992186,1741781432364,-218.54297859,9.9e-05,2]
[355992187,1741781432376,-331.45702141,9.9e-05,2]
[355992188,1741781432386,-150.0,9.9e-05,2]
[355992189,1741781432396,-150.0,9.9e-05,2]
[355992190,1741781432406,-7.69673503,9.9e-05,2]
[355992191,1741781432423,-142.30326497,9.9e-05,2]
[355992192,1741781432433,-124.7178531,9.91e-05,2]
[355992193,1741781432849,-1502.15860703,9.91e-05,2]
[355992194,1741781432860,-2388.93954564,9.91e-05,2]
[355992195,1741781432906,-4033.93065,9.91e-05,2]
[355992220,1741781438249,-584.78514729,9.91e-05,2]
[355992223,1741781438272,-376.35212157,9.91e-05,2]
[355992225,1741781438284,-261.15425259,9.91e-05,2]
[355992226,1741781438293,-16.44074741,9.973e-05,2]
[355992227,1741781438459,-628.8807803,9.973e-05,2]
[355992228,1741781438468,-500.0,9.999e-05,2]
[355992229,1741781438478,-150.0,9.999e-05,2]
[355992230,1741781438488,-500.0,9.999e-05,2]
[355992231,1741781438497,-500.0,9.999e-05,2]
[355992232,1741781438507,-500.0,9.999e-05,2]
[355992233,1741781438516,-184.2192188,9.999e-05,2]
[355992234,1741781438529,-315.7807812,9.999e-05,2]
[355992235,1741781438541,-193.49016933,9.999e-05,2]
[355992236,1741781438551,-558.0,0.0001,2]
[355992237,1741781438560,-19596.06892496,0.0001,2]
[355992238,1741781438574,-6330.50896679,0.0001,2]
[355992239,1741781438583,-2527.24859114,0.0001,2]
[355992244,1741781440417,-1616518.70331731,0.0001,2]
[355992245,1741781440494,-320.79212886,0.0001,2]
[355992246,1741781440504,-1729.85740307,0.0001,2]
[355992247,1741781440620,-1217.4,0.0001,2]
[355992248,1741781440675,-4225.61074269,0.0001,2]
[355992249,1741781440740,-10184.64482401,0.0001,2]
[355992266,1741781443358,-209.24296631,9.999e-05,2]
[355992267,1741781443458,-290.75703369,9.999e-05,2]
[355992268,1741781443468,-500.0,9.999e-05,2]
[355992269,1741781443478,-500.0,9.999e-05,2]
[355992270,1741781443488,-249.95660449,9.999e-05,2]
[355992271,1741781443498,-595.0,0.0001,2]
[355992272,1741781443508,-3647.79808355,0.0001,2]
[355992273,1741781443537,-9453.46787404,0.0001,2]
[355992274,1741781443551,-733.58590958,0.0001,2]
[355992275,1741781443566,-251.77787335,0.0001,2]
[355992278,1741781443905,-22586.19651585,0.0001,2]
[355992279,1741781443924,-1136.29584182,0.0001,2]
[355992312,1741781446358,-48056.72093723,0.0001,2]
[355992313,1741781446411,-88513.81436213,0.0001,2]
[355992314,1741781446423,-625.69484259,0.0001,2]
[355992315,1741781446434,-47583.98221224,0.0001,2]
[355992316,1741781446464,-344990.31249095,0.0001,2]
[355992317,1741781446520,-1283.92546627,0.0001,2]
[355992318,1741781446576,-894.56493187,0.0001,2]
[355992319,1741781446631,-22400.0,0.0001,2]
[355992328,1741781950565,-150.0,9.899e-05,2]
[355992329,1741781950587,-300.0,9.899e-05,2]
[355992330,1741781950607,-1514.7974,9.9e-05,2]
[355992331,1741781950628,-342.9626,9.9e-05,2]
[355992332,1741781950649,-13692.24,9.9e-05,2]
[355992345,1741782193698,-151.97251927,9e-05,2]
[355992347,1741782434829,-301.0,9e-05,2]
[355992348,1741782550728,-500.0,0.00027397,120]
[355992349,1741782550754,-501.22055973,0.00027397,120]
[355992350,1741782550780,-500.0,0.00027397,120]
[355992351,1741782550805,-503.05808221,0.00027397,120]
[355992352,1741782550829,-500.0,0.00027397,120]
[355992353,1741782550856,-500.0,0.00027397,120]
[355992354,1741782550883,-500.0,0.00027397,120]
[355992355,1741782550908,-500.0,0.00027397,120]
[355992356,1741782550934,-500.0,0.00027397,120]
[355992357,1741782550962,-495.72135806,0.00027397,120]
[355992365,1741782611504,-4.27864194,0.00027397,120]
[355992366,1741782611533,-500.0,0.00027397,120]
[355992367,1741782611561,-500.0,0.00027397,120]
[355992368,1741782611587,-500.0,0.00027397,120]
[355992369,1741782611614,-500.0,0.00027397,120]
[355992370,1741782611640,-587.58875527,0.00027397,120]
[355992371,1741782611672,-500.0,0.00028573,120]
[355992397,1741782637474,-97.02748073,9e-05,2]
[355992398,1741782637484,-366.50701927,9.898e-05,2]
[355992399,1741782637496,-1682.35978073,9.898e-05,2]
[355992400,1741782637506,-223.1545,9.898e-05,2]
[355992401,1741782637517,-313.6676,9.898e-05,2]
[355992403,1741782637527,-2105.14256004,9.9e-05,2]
[355992405,1741782637545,-582.41523645,9.9e-05,2]
[355992407,1741782637557,-1850.45,9.9e-05,2]
[355992409,1741782637569,-914.09130211,9.9e-05,2]
[355992411,1741782637582,-275.62899589,9.9e-05,2]
[355992414,1741782637621,-391.77508696,9.9e-05,2]
[355992416,1741782637633,-269.33846256,9.9e-05,2]
[355992420,1741782637669,-475.49962009,9.9e-05,2]
[355992422,1741782637682,-7318.2770359,9.9e-05,2]